fUST/lending_fUST_20250401
["ID","MTS","AMOUNT","RATE_DAILY","PERIOD"]
[356976991,1743515451418,-500.0,0.0001863,2]
[356976992,1743515451428,-500.0,0.0001863,2]
[356976993,1743515451438,-500.0,0.0001863,2]
[356976994,1743515451448,-500.0,0.0001863,2]
[356976995,1743515451458,-500.0,0.0001863,2]
[356976996,1743515451468,-500.0,0.0001863,2]
[356976997,1743515451478,-247.88547176,0.0001863,2]
[356976998,1743515641090,206.85,0.00010959,2]
[356976999,1743515661960,172.37,0.00010959,2]
[356977000,1743515672489,861.89,0.00010959,2]
[356977009,1743516147803,251.0,0.000145,3]
[356977019,1743516482038,-423.97,0.00013897,2]
[356977020,1743516489157,-293.85457745,0.00013897,2]
[356977021,1743516499421,-152.9334917,0.00013758,2]
[356977022,1743516510780,-228.36155915,0.00013758,2]
[356977023,1743516513828,-42.67494915,0.00013758,2]
[356977024,1743516513853,-149.23049663,0.00013897,2]
[356977025,1743516517630,-28.34092592,0.00013897,2]
[356977026,1743516517662,-148.43599865,0.00013954,2]
[356977027,1743516541829,-89.28110635,0.00013954,2]
[356977028,1743516541852,-107.86212372,0.00014751,2]
[356977029,1743516551879,-268.0,0.00014603,2]
[356977030,1743516592062,-278.84325922,0.00013882,2]
[356977031,1743516600721,-269.09674078,0.00013882,2]
[356977032,1743516608731,-353.32835595,0.00013882,2]
[356977068,1743516632664,-1521.19408505,0.00013882,2]
[356977071,1743516632675,-1980.4938658,0.00013972,2]
[356977073,1743516632688,-81.43018399,0.00014603,2]
[356977075,1743516632698,-349.43018399,0.00014751,2]
[356977077,1743516632708,-3005.84883894,0.00014845,2]
[356977079,1743516632718,-164.88918196,0.00014846,2]
[356977081,1743516632729,-300.0,0.00014852,2]
[356977083,1743516632740,-5000.0,0.00014853,2]
[356977085,1743516632750,-193.25285177,0.000149,2]
[356977087,1743516632760,-193.25285175,0.000149,2]
[356977089,1743516632771,-193.25285175,0.000149,2]
[356977091,1743516632781,-50000.0,0.000149,2]
[356977093,1743516632791,-200.35811974,0.00014945,2]
[356977096,1743516632801,-500.0,0.00014945,2]
[356977098,1743516632814,-285.06941724,0.00014945,2]
[356977099,1743516632825,-500.0,0.00014945,2]
[356977102,1743516632836,-500.0,0.00014945,2]
[356977104,1743516632846,-512.80738767,0.00014945,2]
[356977106,1743516632856,-500.0,0.00014945,2]
[356977108,1743516632865,-500.0,0.00014945,2]
[356977109,1743516632878,-500.0,0.00014945,2]
[356977112,1743516632888,-500.0,0.00014945,2]
[356977114,1743516632898,-500.0,0.00014945,2]
[356977116,1743516632909,-500.0,0.00014945,2]
[356977118,1743516632919,-500.0,0.00014945,2]
[356977120,1743516632929,-500.0,0.00014945,2]
[356977122,1743516632939,-500.0,0.00014945,2]
[356977124,1743516632949,-500.0,0.00014945,2]
[356977126,1743516632959,-411.43180975,0.00014945,2]
[356977128,1743516632969,-500.0,0.00014945,2]
[356977130,1743516632978,-500.0,0.00014945,2]
[356977132,1743516632988,-500.0,0.00014945,2]
[356977134,1743516632998,-500.0,0.00014945,2]
[356977136,1743516633007,-500.0,0.00014945,2]
[356977138,1743516633017,-500.0,0.00014945,2]
[356977140,1743516633026,-381.97284603,0.00014945,2]
[356977142,1743516633037,-500.0,0.00014945,2]
[356977144,1743516633047,-500.0,0.00014945,2]
[356977146,1743516633057,-500.0,0.00014945,2]
[356977148,1743516633067,-500.0,0.00014945,2]
[356977150,1743516633077,-500.0,0.00014945,2]
[356977152,1743516633087,-500.0,0.00014945,2]
[356977154,1743516633097,-500.0,0.00014945,2]
[356977157,1743516633108,-500.0,0.00014945,2]
[356977159,1743516633117,-500.0,0.00014945,2]
[356977161,1743516633130,-500.0,0.00014945,2]
[356977163,1743516633140,-500.0,0.00014945,2]
[356977165,1743516633152,-500.0,0.00014945,2]
[356977167,1743516633162,-500.0,0.00014945,2]
[356977169,1743516633173,-500.0,0.00014945,2]
[356977171,1743516633183,-500.0,0.00014945,2]
[356977173,1743516633192,-500.0,0.00014945,2]
[356977175,1743516633202,-500.0,0.00014945,2]
[356977177,1743516633212,-500.0,0.00014945,2]
[356977179,1743516633222,-500.0,0.00014945,2]
[356977181,1743516633232,-500.0,0.00014945,2]
[356977183,1743516633243,-500.0,0.00014945,2]
[356977185,1743516633254,-500.0,0.00014945,2]
[356977187,1743516633264,-500.0,0.00014945,2]
[356977189,1743516633275,-500.0,0.00014945,2]
[356977191,1743516633286,-500.0,0.00014945,2]
[356977193,1743516633297,-500.0,0.00014945,2]
[356977195,1743516633309,-500.0,0.00014945,2]
[356977197,1743516633320,-500.0,0.00014945,2]
[356977199,1743516633330,-500.0,0.00014945,2]
[356977201,1743516633341,-551.1259794,0.00014945,2]
[356977203,1743516633351,-230.93772132,0.00014945,2]
[356977205,1743516633361,-500.0,0.00014945,2]
[356977208,1743516633374,-500.0,0.00014945,2]
[356977210,1743516633384,-500.0,0.00014945,2]
[356977212,1743516633394,-500.0,0.00014945,2]
[356977214,1743516633405,-500.0,0.00014945,2]
[356977216,1743516633415,-500.0,0.00014945,2]
[356977217,1743516633426,-500.0,0.00014945,2]
[356977220,1743516633437,-202.88628771,0.00014945,2]
[356977222,1743516633447,-4367.61863714,0.00014945,2]
[356977224,1743516633459,-4367.61863714,0.00014945,2]
[356977226,1743516633470,-4367.61863714,0.00014945,2]
[356977228,1743516633481,-4367.61863714,0.00014945,2]
[356977230,1743516633491,-4367.61863714,0.00014945,2]
[356977232,1743516633503,-4367.61863714,0.00014945,2]
[356977234,1743516633513,-4367.61863714,0.00014945,2]
[356977236,1743516633524,-4367.61863714,0.00014945,2]
[356977238,1743516633534,-4367.61863714,0.00014945,2]
[356977240,1743516633545,-4367.61863714,0.00014945,2]
[356977242,1743516633555,-4367.61863714,0.00014945,2]
[356977244,1743516633566,-4367.61863714,0.00014945,2]
[356977246,1743516633576,-4367.61863714,0.00014945,2]
[356977248,1743516633586,-4367.61863714,0.00014945,2]
[356977250,1743516633596,-4367.61863714,0.00014945,2]
[356977252,1743516633606,-4367.61863714,0.00014945,2]
[356977255,1743516633616,-4367.61863714,0.00014945,2]
[356977257,1743516633629,-4367.61863714,0.00014945,2]
[356977259,1743516633639,-4367.61863714,0.00014945,2]
[356977261,1743516633650,-4367.61863714,0.00014945,2]
[356977263,1743516633660,-4367.61863714,0.00014945,2]
[356977265,1743516633670,-4367.61863714,0.00014945,2]
[356977267,1743516633680,-4367.61863714,0.00014945,2]
[356977269,1743516633690,-4367.61863714,0.00014945,2]
[356977271,1743516633702,-4367.61863714,0.00014945,2]
[356977273,1743516633713,-4367.61863714,0.00014945,2]
[356977276,1743516633727,-4367.61863714,0.00014945,2]
[356977278,1743516633736,-4367.61863714,0.00014945,2]
[356977280,1743516633746,-4367.61863714,0.00014945,2]
[356977282,1743516633756,-4367.61863714,0.00014945,2]
[356977284,1743516633767,-4367.61863714,0.00014945,2]
[356977286,1743516633776,-4367.61863714,0.00014945,2]
[356977288,1743516633786,-4367.61863714,0.00014945,2]
[356977290,1743516633797,-4367.61863714,0.00014945,2]
[356977292,1743516633808,-1920.4840279,0.00014945,2]
[356977295,1743516633831,-543.54654503,0.00014945,2]
[356977297,1743516633842,-727.10796862,0.00014945,2]
[356977300,1743516633855,-1176.48009559,0.00014945,2]
[356977302,1743516633865,-4288.75885619,0.00014945,2]
[356977304,1743516633876,-4288.75885619,0.00014945,2]
[356977306,1743516633885,-4288.75885619,0.00014945,2]
[356977307,1743516633895,-4288.75885619,0.00014945,2]
[356977310,1743516633905,-4288.75885619,0.00014945,2]
[356977312,1743516633914,-4288.75885619,0.00014945,2]
[356977314,1743516633924,-4288.75885619,0.00014945,2]
[356977316,1743516633934,-4288.75885619,0.00014945,2]
[356977318,1743516633944,-4288.75885619,0.00014945,2]
[356977320,1743516633956,-4288.75885619,0.00014945,2]
[356977322,1743516633966,-4288.75885619,0.00014945,2]
[356977324,1743516633975,-4288.75885619,0.00014945,2]
[356977326,1743516633985,-4288.75885619,0.00014945,2]
[356977328,1743516633995,-4288.75885619,0.00014945,2]
[356977330,1743516634005,-4288.75885619,0.00014945,2]
[356977332,1743516634016,-4481.71748474,0.00014945,2]
[356977334,1743516634026,-4481.71748474,0.00014945,2]
[356977336,1743516634036,-4481.71748474,0.00014945,2]
[356977338,1743516634052,-4481.71748474,0.00014945,2]
[356977340,1743516634062,-1211.9486779,0.00014945,2]
[356977346,1743516634105,-216.53306303,0.00014945,2]
[356977617,1743516636961,-206.14393455,0.00014795,2]
[356977757,1743516638459,-373.66093231,0.00014795,2]
[356977759,1743516638470,-3053.23574381,0.00014945,2]
[356977761,1743516638480,-4481.71748474,0.00014945,2]
[356977763,1743516638491,-4481.71748475,0.00014945,2]
[356977765,1743516638500,-4481.71748475,0.00014945,2]
[356977767,1743516638511,-180.690784,0.00014945,2]
[356977769,1743516638522,-151.0,0.00014945,2]
[356977771,1743516638532,-159.668613,0.00014945,2]
[356977773,1743516638543,-234.067641,0.00014945,2]
[356977775,1743516638552,-151.0,0.00014945,2]
[356977777,1743516638562,-234.067641,0.00014945,2]
[356977779,1743516638572,-151.0,0.00014946,2]
[356977781,1743516638582,-151.0,0.00014946,2]
[356977783,1743516638592,-1454.989608,0.00014946,2]
[356977785,1743516638602,-1454.989608,0.00014946,2]
[356977787,1743516638611,-1454.989608,0.00014946,2]
[356977789,1743516638621,-1454.989608,0.00014946,2]
[356977791,1743516638633,-3245.542774,0.00014946,2]
[356977793,1743516638643,-3245.542774,0.00014946,2]
[356977795,1743516638653,-3245.542774,0.00014946,2]
[356977797,1743516638663,-3245.542774,0.00014946,2]
[356977799,1743516638674,-232.511834,0.00014947,2]
[356977801,1743516638684,-151.0,0.00014947,2]
[356977803,1743516638694,-275.193452,0.00014947,2]
[356977805,1743516638704,-290.505937,0.00014947,2]
[356977808,1743516638716,-290.505937,0.00014947,2]
[356977810,1743516638726,-290.505937,0.00014947,2]
[356977812,1743516638737,-290.505937,0.00014947,2]
[356977814,1743516638749,-290.505937,0.00014947,2]
[356977816,1743516638759,-290.505937,0.00014947,2]
[356977818,1743516638768,-151.0,0.00014947,2]
[356977820,1743516638778,-151.0,0.00014947,2]
[356977822,1743516638787,-151.0,0.00014947,2]
[356977824,1743516638796,-151.0,0.00014947,2]
[356977825,1743516638806,-222.453628,0.00014947,2]
[356977828,1743516638816,-311.494627,0.00014947,2]
[356977830,1743516638827,-311.494627,0.00014947,2]
[356977832,1743516638837,-311.494627,0.00014947,2]
[356977834,1743516638846,-151.0,0.00014947,2]
[356977836,1743516638856,-311.494627,0.00014947,2]
[356977838,1743516638865,-151.0,0.00014947,2]
[356977839,1743516638878,-311.494627,0.00014947,2]
[356977841,1743516638887,-151.0,0.00014947,2]
[356977844,1743516638897,-311.494627,0.00014947,2]
[356977845,1743516638907,-170.054431,0.00014947,2]
[356977847,1743516638916,-170.054431,0.00014947,2]
[356977850,1743516638927,-170.054431,0.00014947,2]
[356977852,1743516638938,-151.0,0.00014947,2]
[356977854,1743516638949,-151.0,0.00014947,2]
[356977856,1743516638959,-151.0,0.00014947,2]
[356977858,1743516638969,-170.054431,0.00014947,2]
[356977860,1743516638979,-170.054431,0.00014947,2]
[356977862,1743516638989,-170.054431,0.00014947,2]
[356977864,1743516638998,-151.0,0.00014947,2]
[356977866,1743516639008,-151.0,0.00014947,2]
[356977868,1743516639018,-151.0,0.00014947,2]
[356977870,1743516639028,-151.0,0.00014947,2]
[356977872,1743516639038,-151.0,0.00014947,2]
[356977874,1743516639048,-151.0,0.00014947,2]
[356977876,1743516639057,-151.0,0.00014947,2]
[356977878,1743516639067,-1454.989608,0.00014947,2]
[356977880,1743516639076,-1454.989608,0.00014947,2]
[356977882,1743516639086,-176.01442,0.00014947,2]
[356977885,1743516639096,-176.01442,0.00014947,2]
[356977886,1743516639106,-3245.542774,0.00014947,2]
[356977888,1743516639116,-3245.542774,0.00014947,2]
[356977890,1743516639129,-18903.25652515,0.00014949,2]
[356977893,1743516639142,-8763.52794197,0.00014949,2]
[356977895,1743516639154,-320.3250005,0.00014949,2]
[356977897,1743516639166,-500.101,0.00014949,2]
[356978092,1743516641184,187.7,0.00014945,2]
[356978671,1743516646639,-2800.11165649,0.00014945,2]
[356978673,1743516646649,-2726.91808496,0.00014945,2]
[356978675,1743516646661,-260.89357153,0.00014945,2]
[356978677,1743516646670,-6391.17569262,0.00014949,2]
[356978679,1743516646680,-197.71375,0.00014949,2]
[356978681,1743516646689,-151.0,0.00014949,2]
[356978683,1743516646699,-151.0,0.00014949,2]
[356978685,1743516646708,-372.017407,0.00014949,2]
[356978687,1743516646718,-372.017407,0.00014949,2]
[356978689,1743516646727,-151.0,0.00014949,2]
[356978691,1743516646737,-234.067641,0.00014949,2]
[356978693,1743516646748,-151.0,0.00014949,2]
[356978695,1743516646760,-234.067641,0.00014949,2]
[356978697,1743516646769,-151.0,0.00014951,2]
[356978699,1743516646779,-151.0,0.00014951,2]
[356978700,1743516646787,-151.0,0.00014951,2]
[356978701,1743516646797,-151.0,0.00014951,2]
[356978702,1743516646807,-151.0,0.00014951,2]
[356978703,1743516646815,-151.0,0.00014951,2]
[356978704,1743516646825,-151.0,0.00014951,2]
[356978705,1743516646835,-191.410973,0.00014951,2]
[356978706,1743516646844,-151.0,0.00014951,2]
[356978707,1743516646853,-151.0,0.00014951,2]
[356978708,1743516646863,-151.0,0.00014951,2]
[356978710,1743516646872,-154.927494,0.00014952,2]
[356978712,1743516646884,-151.0,0.00014952,2]
[356978714,1743516646893,-151.0,0.00014952,2]
[356978716,1743516646903,-151.0,0.00014952,2]
[356978718,1743516646912,-1454.989608,0.00014952,2]
[356978720,1743516646922,-1454.989608,0.00014952,2]
[356978722,1743516646931,-176.01442,0.00014952,2]
[356978724,1743516646940,-2186.97477703,0.00014952,2]
[356978736,1743516647041,-1058.56799697,0.00014952,2]
[356978738,1743516647051,-176.01442,0.00014952,2]
[356978740,1743516647060,-3245.542774,0.00014952,2]
[356978742,1743516647069,-64.8748091,0.00014953,2]
[356978744,1743516647080,-194.1361559,0.00014953,2]
[356978746,1743516647090,-290.505937,0.00014953,2]
[356978748,1743516647099,-290.505937,0.00014953,2]
[356978750,1743516647108,-151.0,0.00014953,2]
[356978752,1743516647118,-311.494627,0.00014953,2]
[356978754,1743516647127,-17.8573431,0.00014953,2]
[356978756,1743516647142,-133.1426569,0.00014953,2]
[356978758,1743516647153,-311.494627,0.00014953,2]
[356978760,1743516647163,-170.054431,0.00014953,2]
[356978762,1743516647172,-151.0,0.00014953,2]
[356978764,1743516647182,-170.054431,0.00014953,2]
[356978766,1743516647192,-151.0,0.00014953,2]
[356978768,1743516647202,-151.0,0.00014953,2]
[356978770,1743516647212,-500.0,0.00014955,2]
[356978772,1743516647222,-230.04753,0.00014955,2]
[356978775,1743516647232,-500.0,0.00014973,2]
[356978777,1743516647242,-500.0,0.00014973,2]
[356978779,1743516647251,-257.297938,0.00014973,2]
[356978781,1743516647261,-151.0,0.00014973,2]
[356978783,1743516647271,-151.0,0.00014973,2]
[356978785,1743516647280,-1143.23735759,0.00015315,2]
[356978787,1743516647289,-500.0,0.00015975,2]
[356978789,1743516647299,-420.0,0.00016257,2]
[356978791,1743516647309,-151.0,0.00016338,2]
[356978793,1743516647319,-151.0,0.00016338,2]
[356978795,1743516647329,-219.078113,0.00016338,2]
[356978797,1743516647339,-151.0,0.00016338,2]
[356978799,1743516647348,-151.0,0.00016338,2]
[356978801,1743516647357,-163.823087,0.00016338,2]
[356978803,1743516647367,-151.0,0.00016338,2]
[356978805,1743516647377,-372.017407,0.00016338,2]
[356978807,1743516647391,-372.017407,0.00016338,2]
[356978809,1743516647400,-290.505937,0.00016338,2]
[356978811,1743516647410,-290.505937,0.00016338,2]
[356978813,1743516647420,-151.0,0.00016338,2]
[356978815,1743516647430,-311.494627,0.00016338,2]
[356978817,1743516647440,-311.494627,0.00016338,2]
[356978819,1743516647451,-151.0,0.00016338,2]
[356978821,1743516647462,-170.054431,0.00016338,2]
[356978823,1743516647472,-151.0,0.00016338,2]
[356978825,1743516647482,-170.054431,0.00016338,2]
[356978827,1743516647491,-151.0,0.00016338,2]
[356978829,1743516647502,-151.0,0.00016338,2]
[356978831,1743516647511,-151.0,0.00016338,2]
[356978833,1743516647522,-1454.989608,0.00016338,2]
[356978835,1743516647531,-1454.989608,0.00016338,2]
[356978837,1743516647541,-176.01442,0.00016338,2]
[356978839,1743516647551,-151.0,0.00016338,2]
[356978841,1743516647561,-3245.542774,0.00016338,2]
[356978843,1743516647570,-176.01442,0.00016338,2]
[356978845,1743516647580,-3245.542774,0.00016338,2]
[356978847,1743516647590,-234.067641,0.00016338,2]
[356978850,1743516647600,-151.0,0.00016338,2]
[356978852,1743516647611,-234.067641,0.00016338,2]
[356978853,1743516647621,-257357.77496787,0.00016338,2]
[356979971,1743516712089,-167.60647244,0.00014747,2]
[356979972,1743516714009,297.6,0.00010959,2]
[356979973,1743516716142,-277.17788012,0.00014747,2]
[356979974,1743516750164,-220.60635781,0.00013882,2]
[356979975,1743516895872,-191.90544578,0.00013882,2]
[356979976,1743516903898,-83.36880321,0.00013882,2]
[356979977,1743516903922,-73.65095859,0.00014747,2]
[356979978,1743516908449,-170.01932539,0.00013882,2]
[356979979,1743516957435,-151.0,0.00013882,2]
[356979980,1743516965334,-31.30480267,0.00013882,2]
[356979981,1743516965357,-119.69519733,0.000146,2]
[356979982,1743517023797,-225.53376751,0.000146,2]
[356979984,1743517325118,-300.0,0.00014747,2]
[356979985,1743517325933,-230.15819044,0.00014747,2]
[356979986,1743517327943,159.06,0.00014,10]
[356979987,1743517424153,150.0,0.00014,10]
[356979988,1743517446501,-237.7171066,0.00014483,2]
[356979989,1743517446524,-7.81390299,0.00014747,2]
[356979990,1743517458317,3113.1251,0.00014,2]
[356979991,1743517467143,496.49,0.00010959,2]
[356979992,1743517480542,-161.37406149,0.000146,2]
[356979993,1743517488253,344.78,0.00010959,2]
[356979997,1743517542862,-150.39660977,0.000146,2]
[356979998,1743517555923,-290.75693073,0.000146,2]
[356979999,1743517571406,-589.06156927,0.00014747,2]
[356980039,1743517833020,-268.25,0.00014747,2]
[356980089,1743517846852,-3086.28102615,0.00014747,2]
[356980090,1743517846862,-913.36659603,0.00015237,2]
[356980092,1743517958314,-300.0,0.00014647,2]
[356980097,1743518042384,-151.0,0.00014501,2]
[356980098,1743518047758,-151.0,0.00014501,2]
[356980099,1743518051546,-199.5032,0.00014501,2]
[356980100,1743518075411,-150.39660977,0.00014501,2]
[356980101,1743518101236,-154.87325922,0.00014501,2]
[356980103,1743518152155,-54.54638106,0.00014501,2]
[356980104,1743518152180,-117.30817316,0.0001456,2]
[356980106,1743518180167,642.36,0.00010959,2]
[356980107,1743518190891,642.36,0.00010959,2]
[356980115,1743518448922,239.39,0.00010959,2]
[356980136,1743518616646,-334.10354898,0.0001385,2]
[356980139,1743518654430,-150.48385792,0.00013807,2]
[356980145,1743518733382,-175.1690347,0.00013669,2]
[356980147,1743518785386,-38.16138568,0.00013669,2]
[356980148,1743518785412,-182.38294702,0.00013722,2]
[356980149,1743518790987,-175.1690347,0.00013584,2]
[356980151,1743518976345,-330.63187497,0.00013448,2]
[356980152,1743519008640,-69.87999931,0.00013448,2]
[356980153,1743519008667,-147.10028624,0.0001358,2]
[356980154,1743519013934,-171.35,0.00013444,2]
[356980188,1743519037769,-19.57742166,0.00013444,2]
[356980189,1743519037780,-190.92742166,0.0001358,2]
[356980190,1743519037790,-575.68090898,0.00013722,2]
[356980191,1743519037800,-204.13016971,0.00013807,2]
[356980192,1743519037817,-9.20025067,0.00013807,2]
[356980193,1743519037827,-225.56870122,0.0001385,2]
[356980194,1743519037838,-1521.40296982,0.000145,2]
[356980196,1743519037848,-207.5550225,0.00014518,2]
[356980198,1743519037858,-84.23312484,0.0001456,2]
[356980199,1743519037868,-201.541298,0.00014633,2]
[356980200,1743519037877,-4431.22111615,0.00014647,2]
[356980201,1743519037889,-268.77888385,0.00014647,2]
[356980202,1743519037899,-230.36673769,0.00014747,2]
[356980263,1743519040209,-320.17165751,0.00014747,2]
[356980551,1743519043037,-263.67766354,0.00014599,2]
[356980553,1743519043047,-1112.2316022,0.00014747,2]
[356980555,1743519043057,-300.0,0.00014881,2]
[356980557,1743519043067,-500.0,0.00014881,2]
[356980559,1743519043076,-200.83172356,0.00014881,2]
[356980561,1743519043086,-387.40728781,0.00014881,2]
[356980563,1743519043096,-500.0,0.00014881,2]
[356980565,1743519043106,-500.0,0.00014881,2]
[356980567,1743519043115,-500.0,0.00014881,2]
[356980569,1743519043125,-500.0,0.00014881,2]
[356980571,1743519043134,-476.85172289,0.00014881,2]
[356980573,1743519043146,-26.44827711,0.00014881,2]
[356980575,1743519043158,-500.0,0.00014881,2]
[356980577,1743519043168,-139.71170626,0.00014881,2]
[356980594,1743519043320,-360.28829374,0.00014881,2]
[356980596,1743519043330,-500.0,0.00014881,2]
[356980598,1743519043340,-500.0,0.00014881,2]
[356980600,1743519043349,-500.0,0.00014881,2]
[356980602,1743519043359,-500.0,0.00014881,2]
[356980604,1743519043369,-500.0,0.00014881,2]
[356980606,1743519043378,-500.0,0.00014881,2]
[356980608,1743519043388,-500.0,0.00014881,2]
[356980610,1743519043398,-269.26211902,0.00014881,2]
[356980612,1743519043410,-500.0,0.00014881,2]
[356980614,1743519043420,-500.0,0.00014881,2]
[356980616,1743519043429,-500.0,0.00014881,2]
[356980618,1743519043438,-500.0,0.00014881,2]
[356980620,1743519043447,-500.0,0.00014881,2]
[356980622,1743519043457,-500.0,0.00014881,2]
[356980624,1743519043466,-500.0,0.00014881,2]
[356980626,1743519043476,-500.0,0.00014881,2]
[356980628,1743519043486,-500.0,0.00014881,2]
[356980630,1743519043495,-500.0,0.00014881,2]
[356980632,1743519043504,-500.0,0.00014881,2]
[356980634,1743519043516,-500.0,0.00014881,2]
[356980636,1743519043527,-632.92245353,0.00014881,2]
[356980638,1743519043536,-500.0,0.00014881,2]
[356980640,1743519043545,-11823.61164914,0.00014882,2]
[356980642,1743519043558,-417.07529672,0.00014882,2]
[356980856,1743519045808,-847.7,0.00014882,2]
[356980859,1743519045821,-2714.05630059,0.00014882,2]
[356980861,1743519045831,-269.27348518,0.00014883,2]
[356980863,1743519045842,-488.0946285,0.00014925,2]
[356980865,1743519045851,-3433.08723214,0.00014984,2]
[356980867,1743519045861,-171.0,0.00016,2]
[356980869,1743519045872,-232.47202364,0.00016135,2]
[356980871,1743519045881,-7623.03290504,0.00016138,2]
[356980873,1743519045901,-5450.0,0.00016138,2]
[356980875,1743519045914,-428.22606936,0.00016138,2]
[356980882,1743519045967,-1250.34647038,0.00016138,2]
[356981552,1743519074239,-152.9482492,0.000144,2]
[356981553,1743519231152,276.57,0.00010959,2]
[356981554,1743519241778,230.48,0.00010959,2]
[356981555,1743519252357,192.07,0.00010959,2]
[356981556,1743519263130,160.05,0.00010959,2]
[356981557,1743519273686,800.3,0.00010959,2]
[356981567,1743519607038,-152.9482492,0.00013079,2]
[356981568,1743519607063,-22.72731588,0.00013079,2]
[356981569,1743519650757,261.11,0.00014,10]
[356981570,1743519830058,312.18,0.00010959,2]
[356981571,1743519877445,-151.45123136,0.00013079,2]
[356981572,1743519977493,-57.58294707,0.00013079,2]
[356981573,1743519977519,-151.45123136,0.00013244,2]
[356981574,1743519977543,-14.93218213,0.00013344,2]
[356981671,1743520232301,-156.41781787,0.00013344,2]
[356981672,1743520232311,-330.6318749,0.00013864,2]
[356981673,1743520232321,-1571.76381582,0.000144,2]
[356981674,1743520232330,-253.4588285,0.00014597,2]
[356981675,1743520232340,-679.5125898,0.00014885,2]
[356981676,1743520232349,-3207.43128719,0.00015033,2]
[356981677,1743520232358,-178.76622004,0.00015034,2]
[356981678,1743520232367,-300.0,0.00015132,2]
[356981679,1743520232377,-500.0,0.00015133,2]
[356981680,1743520232386,-500.0,0.00015133,2]
[356981681,1743520232395,-786.45816463,0.00015133,2]
[356981683,1743520232405,-500.0,0.00015133,2]
[356981685,1743520232414,-513.6207531,0.00015133,2]
[356981686,1743520232424,-786.45816463,0.00015133,2]
[356981689,1743520232440,-500.0,0.00015133,2]
[356981690,1743520232450,-500.0,0.00015133,2]
[356981693,1743520232460,-500.0,0.00015133,2]
[356981694,1743520232470,-786.45816463,0.00015133,2]
[356981697,1743520232480,-161.19666612,0.00015133,2]
[356981699,1743520232491,-786.45816463,0.00015133,2]
[356981701,1743520232500,-786.45816463,0.00015133,2]
[356981703,1743520232511,-786.45816463,0.00015133,2]
[356981705,1743520232521,-786.45816463,0.00015133,2]
[356981707,1743520232531,-786.45816463,0.00015133,2]
[356981709,1743520232540,-786.45816463,0.00015133,2]
[356981711,1743520232550,-786.45816463,0.00015133,2]
[356981713,1743520232560,-786.45816463,0.00015133,2]
[356981715,1743520232570,-786.45816463,0.00015133,2]
[356981717,1743520232579,-786.45816463,0.00015133,2]
[356981719,1743520232589,-786.45816463,0.00015133,2]
[356981721,1743520232599,-786.45816463,0.00015133,2]
[356981723,1743520232609,-786.45816463,0.00015133,2]
[356981725,1743520232619,-786.45816463,0.00015133,2]
[356981727,1743520232629,-786.45816463,0.00015133,2]
[356981729,1743520232639,-786.45816463,0.00015133,2]
[356981731,1743520232649,-786.45816463,0.00015133,2]
[356981733,1743520232659,-786.45816463,0.00015133,2]
[356981736,1743520232668,-786.45816463,0.00015133,2]
[356981740,1743520232679,-786.45816463,0.00015133,2]
[356981743,1743520232690,-786.45816463,0.00015133,2]
[356981746,1743520232699,-786.45816463,0.00015133,2]
[356981749,1743520232709,-786.45816463,0.00015133,2]
[356981752,1743520232718,-786.45816463,0.00015133,2]
[356981754,1743520232727,-786.45816463,0.00015133,2]
[356981757,1743520232737,-786.45816463,0.00015133,2]
[356981760,1743520232746,-786.45816463,0.00015133,2]
[356981763,1743520232755,-781.03431522,0.00015133,2]
[356981766,1743520232765,-781.03431522,0.00015133,2]
[356981769,1743520232774,-781.03431522,0.00015133,2]
[356981771,1743520232784,-781.03431522,0.00015133,2]
[356981773,1743520232793,-781.03431522,0.00015133,2]